Workbook

Sheet Лист1
F1: =COUNTIF(F2:F300,TRUE) -> 10 | G1: =COUNTIF(G2:G300,TRUE) -> 7 | H1: =COUNTIF(H2:H300,TRUE) -> 2 | I1: =B4 -> (Denim Demedj)
I2: Титулы в КТ 46 сезона: | J2: Золото | K2: =F1 -> 10 | L2: ( | M2: =ROUND(K2/AC2*100,2) -> 52.63 | N2: % | O2: ) | P2: Серебро | Q2: =G1 -> 7 | R2: ( | S2: =ROUND(Q2/AC2*100,2) -> 36.84 | T2: % | U2: ) | V2: Бронза | W2: =H1 -> 2 | X2: ( | Y2: =ROUND(W2/AC2*100,2) -> 10.53 | Z2: % | AA2: ) | AB2: Итого | AC2: =K2+Q2+W2 -> 19
I3: Титулы в КТ 1-45 сезон: | J3: Золото | K3: 65 | L3: ( | M3: =ROUND(K3/AC3*100,2) -> 32.18 | N3: % | O3: ) | P3: Серебро | Q3: 64 | R3: ( | S3: =ROUND(Q3/AC3*100,2) -> 31.68 | T3: % | U3: ) | V3: Бронза | W3: 73 | X3: ( | Y3: =ROUND(W3/AC3*100,2) -> 36.14 | Z3: % | AA3: ) | AB3: Итого | AC3: =K3+Q3+W3 -> 202
A4: ----> | B4: (Denim Demedj) | C4: Алай | D4: 46 | E4: Бронзовый призер ОКТ "Аркадный 1450" | F4: =EXACT(LEFT($E4,3),"Поб") -> FALSE | G4: =EXACT(LEFT($E4,3),"Фин") -> FALSE | H4: =EXACT(LEFT($E4,3),"Бро") -> TRUE | I4: Титулы в КТ 1-46 сезон: | J4: Золото | K4: =K2+K3 -> 75 | L4: ( | M4: 33.94 | N4: % | O4: ) | P4: Серебро | Q4: =Q2+Q3 -> 71 | R4: ( | S4: 32.13 | T4: % | U4: ) | V4: Бронза | W4: =W2+W3 -> 75 | X4: ( | Y4: 33.94 | Z4: % | AA4: ) | AB4: Итого | AC4: 221
B5: (Denim Demedj) | C5: Насарава Юнайтед | D5: 46 | E5: Победитель ОКТ "Аркадный 1450 В" | F5: =EXACT(LEFT($E5,3),"Поб") -> TRUE | G5: =EXACT(LEFT($E5,3),"Фин") -> FALSE | H5: =EXACT(LEFT($E5,3),"Бро") -> FALSE
B6: (Denim Demedj) | C6: Симба | D6: 46 | E6: Финалист ОКТ "Аркадий 9" | F6: FALSE | G6: TRUE | H6: FALSE
B7: (Denim Demedj) | C7: Луни Тьюнз | D7: 46 | E7: Победитель ОКТ "Аркадий 12" | F7: TRUE | G7: FALSE | H7: FALSE
B8: (Denim Demedj) | C8: Чайка ФК | D8: 46 | E8: Финалист ОКТ "Аркадий 5" | F8: FALSE | G8: TRUE | H8: FALSE
B9: (Denim Demedj) | C9: ПМЦ Поставы | D9: 46 | E9: Финалист ОКТ "Аркадий 13" | F9: FALSE | G9: TRUE | H9: FALSE
B10: (Denim Demedj) | C10: ПМЦ Поставы | D10: 46 | E10: Победитель ОКТ "Золото ацтеков-46-950" | F10: TRUE | G10: FALSE | H10: FALSE
B11: (Denim Demedj) | C11: Луни Тьюнз | D11: 46 | E11: Победитель ОКТ "Аркадий 32" | F11: TRUE | G11: FALSE | H11: FALSE
B12: (Denim Demedj) | C12: Айнтрахт Брауншвейг | D12: 46 | E12: Финалист ОКТ "Аркадий 34" | F12: FALSE | G12: TRUE | H12: FALSE
B13: (Denim Demedj) | C13: Скарборо Атлетик | D13: 46 | E13: Победитель ОКТ "Аркадий 31" | F13: TRUE | G13: FALSE | H13: FALSE
B14: (Denim Demedj) | C14: Симба | D14: 46 | E14: Победитель ОКТ "Аркадий 35" | F14: TRUE | G14: FALSE | H14: FALSE
B15: (Denim Demedj) | C15: Униао де Мадейра | D15: 46 | E15: Финалист ОКТ "Аркадий 26" | F15: FALSE | G15: TRUE | H15: FALSE
B16: (Denim Demedj) | C16: Луни Тьюнз | D16: 46 | E16: Победитель ОКТ "Аркадий 42" | F16: TRUE | G16: FALSE | H16: FALSE
B17: (Denim Demedj) | C17: Насарава Юнайтед | D17: 46 | E17: Финалист ОКТ "Аркадий 37" | F17: FALSE | G17: TRUE | H17: FALSE
B18: (Denim Demedj) | C18: Алай | D18: 46 | E18: Победитель ОКТ ""Суперлига. Дивизион А"" | F18: TRUE | G18: FALSE | H18: FALSE
B19: (Denim Demedj) | C19: Мавегру | D19: 46 | E19: Победитель ОКТ "Убойный футбол" | F19: TRUE | G19: FALSE | H19: FALSE
B20: (Denim Demedj) | C20: Насарава Юнайтед | D20: 46 | E20: Победитель ОКТ "Флаг Мартиники №1" | F20: TRUE | G20: FALSE | H20: FALSE
B21: (Denim Demedj) | C21: Луни Тьюнз | D21: 46 | E21: Финалист ОКТ "Moldovan Open Cup-1550" | F21: FALSE | G21: TRUE | H21: FALSE
B22: (Denim Demedj) | C22: Моура | D22: 46 | E22: Бронзовый призер ОКТ "Аркадный 1501" | F22: FALSE | G22: FALSE | H22: TRUE
F23: FALSE | G23: FALSE | H23: FALSE
F24: FALSE | G24: FALSE | H24: FALSE
F25: FALSE | G25: FALSE | H25: FALSE
F26: FALSE | G26: FALSE | H26: FALSE
F27: FALSE | G27: FALSE | H27: FALSE
F28: FALSE | G28: FALSE | H28: FALSE
F29: FALSE | G29: FALSE | H29: FALSE
F30: FALSE | G30: FALSE | H30: FALSE
F31: FALSE | G31: FALSE | H31: FALSE
F32: FALSE | G32: FALSE | H32: FALSE
F33: FALSE | G33: FALSE | H33: FALSE
F34: FALSE | G34: FALSE | H34: FALSE
F35: FALSE | G35: FALSE | H35: FALSE
F36: FALSE | G36: FALSE | H36: FALSE
F37: FALSE | G37: FALSE | H37: FALSE
F38: FALSE | G38: FALSE | H38: FALSE
F39: FALSE | G39: FALSE | H39: FALSE
F40: FALSE | G40: FALSE | H40: FALSE
F41: FALSE | G41: FALSE | H41: FALSE
F42: FALSE | G42: FALSE | H42: FALSE
F43: FALSE | G43: FALSE | H43: FALSE
F44: FALSE | G44: FALSE | H44: FALSE
F45: FALSE | G45: FALSE | H45: FALSE
F46: FALSE | G46: FALSE | H46: FALSE
F47: FALSE | G47: FALSE | H47: FALSE
F48: FALSE | G48: FALSE | H48: FALSE
F49: FALSE | G49: FALSE | H49: FALSE
F50: FALSE | G50: FALSE | H50: FALSE
F51: FALSE | G51: FALSE | H51: FALSE
F52: FALSE | G52: FALSE | H52: FALSE
F53: FALSE | G53: FALSE | H53: FALSE
F54: FALSE | G54: FALSE | H54: FALSE
F55: FALSE | G55: FALSE | H55: FALSE
F56: FALSE | G56: FALSE | H56: FALSE
F57: FALSE | G57: FALSE | H57: FALSE
F58: FALSE | G58: FALSE | H58: FALSE
F59: FALSE | G59: FALSE | H59: FALSE
F60: FALSE | G60: FALSE | H60: FALSE
F61: FALSE | G61: FALSE | H61: FALSE
F62: FALSE | G62: FALSE | H62: FALSE
F63: FALSE | G63: FALSE | H63: FALSE
F64: FALSE | G64: FALSE | H64: FALSE
F65: FALSE | G65: FALSE | H65: FALSE
F66: FALSE | G66: FALSE | H66: FALSE
F67: FALSE | G67: FALSE | H67: FALSE
F68: FALSE | G68: FALSE | H68: FALSE
F69: =EXACT(LEFT($E69,3),"Поб") -> FALSE | G69: =EXACT(LEFT($E69,3),"Фин") -> FALSE | H69: =EXACT(LEFT($E69,3),"Бро") -> FALSE
F70: FALSE | G70: FALSE | H70: FALSE
F71: FALSE | G71: FALSE | H71: FALSE
F72: FALSE | G72: FALSE | H72: FALSE
F73: FALSE | G73: FALSE | H73: FALSE
F74: FALSE | G74: FALSE | H74: FALSE
F75: FALSE | G75: FALSE | H75: FALSE
F76: FALSE | G76: FALSE | H76: FALSE
F77: FALSE | G77: FALSE | H77: FALSE
F78: FALSE | G78: FALSE | H78: FALSE
F79: FALSE | G79: FALSE | H79: FALSE
F80: FALSE | G80: FALSE | H80: FALSE
F81: FALSE | G81: FALSE | H81: FALSE
F82: FALSE | G82: FALSE | H82: FALSE
F83: FALSE | G83: FALSE | H83: FALSE
F84: FALSE | G84: FALSE | H84: FALSE
F85: FALSE | G85: FALSE | H85: FALSE
F86: FALSE | G86: FALSE | H86: FALSE
F87: FALSE | G87: FALSE | H87: FALSE
F88: FALSE | G88: FALSE | H88: FALSE
F89: FALSE | G89: FALSE | H89: FALSE
F90: FALSE | G90: FALSE | H90: FALSE
F91: FALSE | G91: FALSE | H91: FALSE
F92: FALSE | G92: FALSE | H92: FALSE
F93: FALSE | G93: FALSE | H93: FALSE
F94: FALSE | G94: FALSE | H94: FALSE
F95: FALSE | G95: FALSE | H95: FALSE
F96: FALSE | G96: FALSE | H96: FALSE
F97: FALSE | G97: FALSE | H97: FALSE
F98: FALSE | G98: FALSE | H98: FALSE
F99: FALSE | G99: FALSE | H99: FALSE
F100: FALSE | G100: FALSE | H100: FALSE
F101: FALSE | G101: FALSE | H101: FALSE
F102: FALSE | G102: FALSE | H102: FALSE
F103: FALSE | G103: FALSE | H103: FALSE
F104: FALSE | G104: FALSE | H104: FALSE
F105: FALSE | G105: FALSE | H105: FALSE
F106: FALSE | G106: FALSE | H106: FALSE
F107: FALSE | G107: FALSE | H107: FALSE
F108: FALSE | G108: FALSE | H108: FALSE
F109: FALSE | G109: FALSE | H109: FALSE
F110: FALSE | G110: FALSE | H110: FALSE
F111: FALSE | G111: FALSE | H111: FALSE
F112: FALSE | G112: FALSE | H112: FALSE
F113: FALSE | G113: FALSE | H113: FALSE
F114: FALSE | G114: FALSE | H114: FALSE
F115: FALSE | G115: FALSE | H115: FALSE
F116: FALSE | G116: FALSE | H116: FALSE
F117: FALSE | G117: FALSE | H117: FALSE
F118: FALSE | G118: FALSE | H118: FALSE
F119: FALSE | G119: FALSE | H119: FALSE
F120: FALSE | G120: FALSE | H120: FALSE
F121: FALSE | G121: FALSE | H121: FALSE
F122: FALSE | G122: FALSE | H122: FALSE
F123: FALSE | G123: FALSE | H123: FALSE
F124: FALSE | G124: FALSE | H124: FALSE
F125: FALSE | G125: FALSE | H125: FALSE
F126: FALSE | G126: FALSE | H126: FALSE
F127: FALSE | G127: FALSE | H127: FALSE
F128: FALSE | G128: FALSE | H128: FALSE
F129: FALSE | G129: FALSE | H129: FALSE
F130: FALSE | G130: FALSE | H130: FALSE
F131: FALSE | G131: FALSE | H131: FALSE
F132: FALSE | G132: FALSE | H132: FALSE
F133: =EXACT(LEFT($E133,3),"Поб") -> FALSE | G133: =EXACT(LEFT($E133,3),"Фин") -> FALSE | H133: =EXACT(LEFT($E133,3),"Бро") -> FALSE
F134: FALSE | G134: FALSE | H134: FALSE
F135: FALSE | G135: FALSE | H135: FALSE
F136: FALSE | G136: FALSE | H136: FALSE
F137: FALSE | G137: FALSE | H137: FALSE
F138: FALSE | G138: FALSE | H138: FALSE
F139: FALSE | G139: FALSE | H139: FALSE
F140: FALSE | G140: FALSE | H140: FALSE
F141: FALSE | G141: FALSE | H141: FALSE
F142: FALSE | G142: FALSE | H142: FALSE
F143: FALSE | G143: FALSE | H143: FALSE
F144: FALSE | G144: FALSE | H144: FALSE
F145: FALSE | G145: FALSE | H145: FALSE
F146: FALSE | G146: FALSE | H146: FALSE
F147: FALSE | G147: FALSE | H147: FALSE
F148: FALSE | G148: FALSE | H148: FALSE
F149: FALSE | G149: FALSE | H149: FALSE
F150: FALSE | G150: FALSE | H150: FALSE
F151: FALSE | G151: FALSE | H151: FALSE
F152: FALSE | G152: FALSE | H152: FALSE
F153: FALSE | G153: FALSE | H153: FALSE
F154: FALSE | G154: FALSE | H154: FALSE
F155: FALSE | G155: FALSE | H155: FALSE
F156: FALSE | G156: FALSE | H156: FALSE
F157: FALSE | G157: FALSE | H157: FALSE
F158: FALSE | G158: FALSE | H158: FALSE
F159: FALSE | G159: FALSE | H159: FALSE
F160: FALSE | G160: FALSE | H160: FALSE
F161: FALSE | G161: FALSE | H161: FALSE
F162: FALSE | G162: FALSE | H162: FALSE
F163: FALSE | G163: FALSE | H163: FALSE
F164: FALSE | G164: FALSE | H164: FALSE
F165: FALSE | G165: FALSE | H165: FALSE
F166: FALSE | G166: FALSE | H166: FALSE
F167: FALSE | G167: FALSE | H167: FALSE
F168: FALSE | G168: FALSE | H168: FALSE
F169: FALSE | G169: FALSE | H169: FALSE
F170: FALSE | G170: FALSE | H170: FALSE
F171: FALSE | G171: FALSE | H171: FALSE
F172: FALSE | G172: FALSE | H172: FALSE
F173: FALSE | G173: FALSE | H173: FALSE
F174: FALSE | G174: FALSE | H174: FALSE
F175: FALSE | G175: FALSE | H175: FALSE
F176: FALSE | G176: FALSE | H176: FALSE
F177: FALSE | G177: FALSE | H177: FALSE
F178: FALSE | G178: FALSE | H178: FALSE
F179: FALSE | G179: FALSE | H179: FALSE
F180: FALSE | G180: FALSE | H180: FALSE
F181: FALSE | G181: FALSE | H181: FALSE
F182: FALSE | G182: FALSE | H182: FALSE
F183: FALSE | G183: FALSE | H183: FALSE
F184: FALSE | G184: FALSE | H184: FALSE
F185: FALSE | G185: FALSE | H185: FALSE
F186: FALSE | G186: FALSE | H186: FALSE
F187: FALSE | G187: FALSE | H187: FALSE
F188: FALSE | G188: FALSE | H188: FALSE
F189: FALSE | G189: FALSE | H189: FALSE
F190: FALSE | G190: FALSE | H190: FALSE
F191: FALSE | G191: FALSE | H191: FALSE
F192: FALSE | G192: FALSE | H192: FALSE
F193: FALSE | G193: FALSE | H193: FALSE
F194: FALSE | G194: FALSE | H194: FALSE
F195: FALSE | G195: FALSE | H195: FALSE
F196: FALSE | G196: FALSE | H196: FALSE
F197: =EXACT(LEFT($E197,3),"Поб") -> FALSE | G197: =EXACT(LEFT($E197,3),"Фин") -> FALSE | H197: =EXACT(LEFT($E197,3),"Бро") -> FALSE
F198: FALSE | G198: FALSE | H198: FALSE
F199: FALSE | G199: FALSE | H199: FALSE
F200: FALSE | G200: FALSE | H200: FALSE
... 100 more rows

Sheet Лист1 (2)
F1: =COUNTIF(F2:F300,TRUE) -> 12 | G1: =COUNTIF(G2:G300,TRUE) -> 10 | H1: =COUNTIF(H2:H300,TRUE) -> 7 | I1: =B4 -> Евгений (НЕВЕРП)
I2: Титулы в КТ: | J2: Золото | K2: =F1 -> 12 | L2: ( | M2: =ROUND(K2/AC2*100,2) -> 41.38 | N2: % | O2: ) | P2: Серебро | Q2: =G1 -> 10 | R2: ( | S2: =ROUND(Q2/AC2*100,2) -> 34.48 | T2: % | U2: ) | V2: Бронза | W2: =H1 -> 7 | X2: ( | Y2: =ROUND(W2/AC2*100,2) -> 24.14 | Z2: % | AA2: ) | AB2: Итого | AC2: =K2+Q2+W2 -> 29
B4: Евгений (НЕВЕРП) | C4: Гиб Каунти | D4: 45 | E4: Финалист ОКТ ""Indonesian Mutiara - 17" ("Индонезийская Жемчужина - 17")" | F4: =EXACT(LEFT($E4,3),"Поб") -> FALSE | G4: =EXACT(LEFT($E4,3),"Фин") -> TRUE | H4: =EXACT(LEFT($E4,3),"Бро") -> FALSE
B5: Евгений (НЕВЕРП) | C5: Сомерсет Троянс | D5: 45 | E5: Бронзовый призер ОКТ "Золото ацтеков-45-1400" | F5: =EXACT(LEFT($E5,3),"Поб") -> FALSE | G5: =EXACT(LEFT($E5,3),"Фин") -> FALSE | H5: =EXACT(LEFT($E5,3),"Бро") -> TRUE
B6: Евгений (НЕВЕРП) | C6: Хийвинкаан Паллосеура | D6: 45 | E6: Бронзовый призер ОКТ "КТ от Беларуси 1500 (45 сезон)" | F6: FALSE | G6: FALSE | H6: TRUE
B7: Евгений (НЕВЕРП) | C7: Ба | D7: 44 | E7: Бронзовый призер ОКТ "Австралия - 1520" | F7: FALSE | G7: FALSE | H7: TRUE
B8: Евгений (НЕВЕРП) | C8: Бермудские острова | D8: 42 | E8: Бронзовый призер ОКТ "Лига наций от Карибской Лиги" | F8: FALSE | G8: FALSE | H8: TRUE
B9: Евгений (НЕВЕРП) | C9: Аугнаблик | D9: 42 | E9: Бронзовый призер ОКТ "Бермудский треугольник-30" | F9: FALSE | G9: FALSE | H9: TRUE
B10: Евгений (НЕВЕРП) | C10: Аугнаблик | D10: 40 | E10: Победитель ОКТ ""Indonesian Mutiara - 14" ("Индонезийская Жемчужина - 14")" | F10: TRUE | G10: FALSE | H10: FALSE
B11: Евгений (НЕВЕРП) | C11: Аугнаблик | D11: 39 | E11: Победитель ОКТ "ОРЛЫ КАРФАГЕНА - 39 сезон" | F11: TRUE | G11: FALSE | H11: FALSE
B12: Евгений (НЕВЕРП) | C12: Сомерсет Троянс | D12: 39 | E12: Бронзовый призер ОКТ "Карибский бургер" | F12: FALSE | G12: FALSE | H12: TRUE
B13: Евгений (НЕВЕРП) | C13: Сомерсет Троянс | D13: 38 | E13: Финалист ОКТ "Ого! Комерческий турнир им. Дорогих цен на продукты" | F13: FALSE | G13: TRUE | H13: FALSE
B14: Евгений (НЕВЕРП) | C14: Илойло | D14: 38 | E14: Победитель ОКТ "Open Cup of Lao People's Democratic Republic 38" | F14: TRUE | G14: FALSE | H14: FALSE
B15: Евгений (НЕВЕРП) | C15: Коломбо | D15: 37 | E15: Победитель ОКТ "Карибская лига" | F15: TRUE | G15: FALSE | H15: FALSE
B16: Евгений (НЕВЕРП) | C16: Аугнаблик | D16: 37 | E16: Финалист ОКТ "England Long Cup" | F16: FALSE | G16: TRUE | H16: FALSE
B17: Евгений (НЕВЕРП) | C17: Сомерсет Троянс | D17: 36 | E17: Победитель ОКТ "Турнир от Лиги-638" | F17: TRUE | G17: FALSE | H17: FALSE
B18: Евгений (НЕВЕРП) | C18: Аугнаблик | D18: 36 | E18: Победитель ОКТ "Турнир от Лиги-640" | F18: TRUE | G18: FALSE | H18: FALSE
B19: Евгений (НЕВЕРП) | C19: Коломбо | D19: 36 | E19: Финалист ОКТ ""Indonesian Mutiara - 05" ("Индонезийская Жемчужина - 05")" | F19: FALSE | G19: TRUE | H19: FALSE
B20: Евгений (НЕВЕРП) | C20: Коломбо | D20: 35 | E20: Финалист ОКТ "Турнир от Лиги-479" | F20: FALSE | G20: TRUE | H20: FALSE
B21: Евгений (НЕВЕРП) | C21: Коломбо | D21: 35 | E21: Победитель ОКТ "Турнир от Лиги-535" | F21: TRUE | G21: FALSE | H21: FALSE
B22: Евгений (НЕВЕРП) | C22: Бермудские острова | D22: 33 | E22: Победитель ОКТ "Карибская Лига Cup" | F22: TRUE | G22: FALSE | H22: FALSE
B23: Евгений (НЕВЕРП) | C23: Сомерсет Троянс | D23: 33 | E23: Победитель ОКТ "Бермудский треугольник-19" | F23: TRUE | G23: FALSE | H23: FALSE
B24: Евгений (НЕВЕРП) | C24: Сомерсет Троянс | D24: 33 | E24: Бронзовый призер ОКТ "Турнир от Лиги-289" | F24: FALSE | G24: FALSE | H24: TRUE
B25: Евгений (НЕВЕРП) | C25: Сомерсет Троянс | D25: 32 | E25: Финалист ОКТ "Бермудский треугольник-18" | F25: FALSE | G25: TRUE | H25: FALSE
B26: Евгений (НЕВЕРП) | C26: Аугнаблик | D26: 32 | E26: Финалист ОКТ "САФАРИ В НИГЕРИИ-13" | F26: FALSE | G26: TRUE | H26: FALSE
B27: Евгений (НЕВЕРП) | C27: Исландия | D27: 32 | E27: Финалист ОКТ "Кубок наций от Карибской Лиги" | F27: FALSE | G27: TRUE | H27: FALSE
B28: Евгений (НЕВЕРП) | C28: Единство Бихач | D28: 29 | E28: Победитель ОКТ "Кубок Карибского Краба" | F28: TRUE | G28: FALSE | H28: FALSE
B29: Евгений (НЕВЕРП) | C29: Африкан Старз | D29: 27 | E29: Финалист ОКТ "Copa Esperanza XIII" | F29: FALSE | G29: TRUE | H29: FALSE
B30: Евгений (НЕВЕРП) | C30: Сомерсет Троянс | D30: 26 | E30: Победитель ОКТ "Бермудский треугольник №9" | F30: TRUE | G30: FALSE | H30: FALSE
B31: Евгений (НЕВЕРП) | C31: Сомерсет Троянс | D31: 25 | E31: Финалист ОКТ "Бермудский треугольник №7" | F31: FALSE | G31: TRUE | H31: FALSE
B32: Евгений (НЕВЕРП) | C32: Кафедрал Квелеман | D32: 14 | E32: Победитель ОКТ "Барбадосский тунец!" | F32: TRUE | G32: FALSE | H32: FALSE
F33: FALSE | G33: FALSE | H33: FALSE
F34: FALSE | G34: FALSE | H34: FALSE
F35: FALSE | G35: FALSE | H35: FALSE
F36: FALSE | G36: FALSE | H36: FALSE
F37: FALSE | G37: FALSE | H37: FALSE
F38: FALSE | G38: FALSE | H38: FALSE
F39: FALSE | G39: FALSE | H39: FALSE
F40: FALSE | G40: FALSE | H40: FALSE
F41: FALSE | G41: FALSE | H41: FALSE
F42: FALSE | G42: FALSE | H42: FALSE
F43: FALSE | G43: FALSE | H43: FALSE
F44: FALSE | G44: FALSE | H44: FALSE
F45: FALSE | G45: FALSE | H45: FALSE
F46: FALSE | G46: FALSE | H46: FALSE
F47: FALSE | G47: FALSE | H47: FALSE
F48: FALSE | G48: FALSE | H48: FALSE
F49: FALSE | G49: FALSE | H49: FALSE
F50: FALSE | G50: FALSE | H50: FALSE
F51: FALSE | G51: FALSE | H51: FALSE
F52: FALSE | G52: FALSE | H52: FALSE
F53: FALSE | G53: FALSE | H53: FALSE
F54: FALSE | G54: FALSE | H54: FALSE
F55: FALSE | G55: FALSE | H55: FALSE
F56: FALSE | G56: FALSE | H56: FALSE
F57: FALSE | G57: FALSE | H57: FALSE
F58: FALSE | G58: FALSE | H58: FALSE
F59: FALSE | G59: FALSE | H59: FALSE
F60: FALSE | G60: FALSE | H60: FALSE
F61: FALSE | G61: FALSE | H61: FALSE
F62: FALSE | G62: FALSE | H62: FALSE
F63: FALSE | G63: FALSE | H63: FALSE
F64: FALSE | G64: FALSE | H64: FALSE
F65: FALSE | G65: FALSE | H65: FALSE
F66: FALSE | G66: FALSE | H66: FALSE
F67: FALSE | G67: FALSE | H67: FALSE
F68: FALSE | G68: FALSE | H68: FALSE
F69: =EXACT(LEFT($E69,3),"Поб") -> FALSE | G69: =EXACT(LEFT($E69,3),"Фин") -> FALSE | H69: =EXACT(LEFT($E69,3),"Бро") -> FALSE
F70: FALSE | G70: FALSE | H70: FALSE
F71: FALSE | G71: FALSE | H71: FALSE
F72: FALSE | G72: FALSE | H72: FALSE
F73: FALSE | G73: FALSE | H73: FALSE
F74: FALSE | G74: FALSE | H74: FALSE
F75: FALSE | G75: FALSE | H75: FALSE
F76: FALSE | G76: FALSE | H76: FALSE
F77: FALSE | G77: FALSE | H77: FALSE
F78: FALSE | G78: FALSE | H78: FALSE
F79: FALSE | G79: FALSE | H79: FALSE
F80: FALSE | G80: FALSE | H80: FALSE
F81: FALSE | G81: FALSE | H81: FALSE
F82: FALSE | G82: FALSE | H82: FALSE
F83: FALSE | G83: FALSE | H83: FALSE
F84: FALSE | G84: FALSE | H84: FALSE
F85: FALSE | G85: FALSE | H85: FALSE
F86: FALSE | G86: FALSE | H86: FALSE
F87: FALSE | G87: FALSE | H87: FALSE
F88: FALSE | G88: FALSE | H88: FALSE
F89: FALSE | G89: FALSE | H89: FALSE
F90: FALSE | G90: FALSE | H90: FALSE
F91: FALSE | G91: FALSE | H91: FALSE
F92: FALSE | G92: FALSE | H92: FALSE
F93: FALSE | G93: FALSE | H93: FALSE
F94: FALSE | G94: FALSE | H94: FALSE
F95: FALSE | G95: FALSE | H95: FALSE
F96: FALSE | G96: FALSE | H96: FALSE
F97: FALSE | G97: FALSE | H97: FALSE
F98: FALSE | G98: FALSE | H98: FALSE
F99: FALSE | G99: FALSE | H99: FALSE
F100: FALSE | G100: FALSE | H100: FALSE
F101: FALSE | G101: FALSE | H101: FALSE
F102: FALSE | G102: FALSE | H102: FALSE
F103: FALSE | G103: FALSE | H103: FALSE
F104: FALSE | G104: FALSE | H104: FALSE
F105: FALSE | G105: FALSE | H105: FALSE
F106: FALSE | G106: FALSE | H106: FALSE
F107: FALSE | G107: FALSE | H107: FALSE
F108: FALSE | G108: FALSE | H108: FALSE
F109: FALSE | G109: FALSE | H109: FALSE
F110: FALSE | G110: FALSE | H110: FALSE
F111: FALSE | G111: FALSE | H111: FALSE
F112: FALSE | G112: FALSE | H112: FALSE
F113: FALSE | G113: FALSE | H113: FALSE
F114: FALSE | G114: FALSE | H114: FALSE
F115: FALSE | G115: FALSE | H115: FALSE
F116: FALSE | G116: FALSE | H116: FALSE
F117: FALSE | G117: FALSE | H117: FALSE
F118: FALSE | G118: FALSE | H118: FALSE
F119: FALSE | G119: FALSE | H119: FALSE
F120: FALSE | G120: FALSE | H120: FALSE
F121: FALSE | G121: FALSE | H121: FALSE
F122: FALSE | G122: FALSE | H122: FALSE
F123: FALSE | G123: FALSE | H123: FALSE
F124: FALSE | G124: FALSE | H124: FALSE
F125: FALSE | G125: FALSE | H125: FALSE
F126: FALSE | G126: FALSE | H126: FALSE
F127: FALSE | G127: FALSE | H127: FALSE
F128: FALSE | G128: FALSE | H128: FALSE
F129: FALSE | G129: FALSE | H129: FALSE
F130: FALSE | G130: FALSE | H130: FALSE
F131: FALSE | G131: FALSE | H131: FALSE
F132: FALSE | G132: FALSE | H132: FALSE
F133: =EXACT(LEFT($E133,3),"Поб") -> FALSE | G133: =EXACT(LEFT($E133,3),"Фин") -> FALSE | H133: =EXACT(LEFT($E133,3),"Бро") -> FALSE
F134: FALSE | G134: FALSE | H134: FALSE
F135: FALSE | G135: FALSE | H135: FALSE
F136: FALSE | G136: FALSE | H136: FALSE
F137: FALSE | G137: FALSE | H137: FALSE
F138: FALSE | G138: FALSE | H138: FALSE
F139: FALSE | G139: FALSE | H139: FALSE
F140: FALSE | G140: FALSE | H140: FALSE
F141: FALSE | G141: FALSE | H141: FALSE
F142: FALSE | G142: FALSE | H142: FALSE
F143: FALSE | G143: FALSE | H143: FALSE
F144: FALSE | G144: FALSE | H144: FALSE
F145: FALSE | G145: FALSE | H145: FALSE
F146: FALSE | G146: FALSE | H146: FALSE
F147: FALSE | G147: FALSE | H147: FALSE
F148: FALSE | G148: FALSE | H148: FALSE
F149: FALSE | G149: FALSE | H149: FALSE
F150: FALSE | G150: FALSE | H150: FALSE
F151: FALSE | G151: FALSE | H151: FALSE
F152: FALSE | G152: FALSE | H152: FALSE
F153: FALSE | G153: FALSE | H153: FALSE
F154: FALSE | G154: FALSE | H154: FALSE
F155: FALSE | G155: FALSE | H155: FALSE
F156: FALSE | G156: FALSE | H156: FALSE
F157: FALSE | G157: FALSE | H157: FALSE
F158: FALSE | G158: FALSE | H158: FALSE
F159: FALSE | G159: FALSE | H159: FALSE
F160: FALSE | G160: FALSE | H160: FALSE
F161: FALSE | G161: FALSE | H161: FALSE
F162: FALSE | G162: FALSE | H162: FALSE
F163: FALSE | G163: FALSE | H163: FALSE
F164: FALSE | G164: FALSE | H164: FALSE
F165: FALSE | G165: FALSE | H165: FALSE
F166: FALSE | G166: FALSE | H166: FALSE
F167: FALSE | G167: FALSE | H167: FALSE
F168: FALSE | G168: FALSE | H168: FALSE
F169: FALSE | G169: FALSE | H169: FALSE
F170: FALSE | G170: FALSE | H170: FALSE
F171: FALSE | G171: FALSE | H171: FALSE
F172: FALSE | G172: FALSE | H172: FALSE
F173: FALSE | G173: FALSE | H173: FALSE
F174: FALSE | G174: FALSE | H174: FALSE
F175: FALSE | G175: FALSE | H175: FALSE
F176: FALSE | G176: FALSE | H176: FALSE
F177: FALSE | G177: FALSE | H177: FALSE
F178: FALSE | G178: FALSE | H178: FALSE
F179: FALSE | G179: FALSE | H179: FALSE
F180: FALSE | G180: FALSE | H180: FALSE
F181: FALSE | G181: FALSE | H181: FALSE
F182: FALSE | G182: FALSE | H182: FALSE
F183: FALSE | G183: FALSE | H183: FALSE
F184: FALSE | G184: FALSE | H184: FALSE
F185: FALSE | G185: FALSE | H185: FALSE
F186: FALSE | G186: FALSE | H186: FALSE
F187: FALSE | G187: FALSE | H187: FALSE
F188: FALSE | G188: FALSE | H188: FALSE
F189: FALSE | G189: FALSE | H189: FALSE
F190: FALSE | G190: FALSE | H190: FALSE
F191: FALSE | G191: FALSE | H191: FALSE
F192: FALSE | G192: FALSE | H192: FALSE
F193: FALSE | G193: FALSE | H193: FALSE
F194: FALSE | G194: FALSE | H194: FALSE
F195: FALSE | G195: FALSE | H195: FALSE
F196: FALSE | G196: FALSE | H196: FALSE
F197: =EXACT(LEFT($E197,3),"Поб") -> FALSE | G197: =EXACT(LEFT($E197,3),"Фин") -> FALSE | H197: =EXACT(LEFT($E197,3),"Бро") -> FALSE
F198: FALSE | G198: FALSE | H198: FALSE
F199: FALSE | G199: FALSE | H199: FALSE
F200: FALSE | G200: FALSE | H200: FALSE
F201: FALSE | G201: FALSE | H201: FALSE
... 99 more rows
